{"text_format":"1","workbook":"xlsx","n_sheets":2,"sheets":["תקציב מקושר תוכנית עבו","תוכנית עבודה"],"not_rendered":{"charts":0,"images":1,"macros":1,"external_links":0,"defined_names":1,"comments":0,"pivot_tables":0},"unopened":[],"bounds":{"document_bytes":16777216,"sheet_cells":100000,"rows_first":2000,"rows_last":500,"rows_between":2000,"halvings":0,"cell_chars":16384,"cell_head_chars":4096},"cells_cut":0,"cells_raw":0,"read":"whole","date_system":"1900"}

{"sheet":"תקציב מקושר תוכנית עבו","index":0,"n_rows":45,"n_cols":10,"rows_kept":45,"cut":false,"hidden":false,"merged":[]}
[]
[null,null,null,null,"מועצה כללי - תוכנית עבודה מקושרת תקציב"]
[]
["מס משימה","שם משימה","סוג סעיף","סעיף","שם סעיף","תקציב 2019","ביצוע תקופתי 2019\n(5 חוד')"," תקציב 2020 (הצעה)","פער 2019/20"]
[-1,{"$f":"IFERROR(INDEX(Table2[שם המשימה],MATCH(Table3[[#This Row],[מס משימה]],Table2[מס משימה],0)),\"\")","v":"*כותרת*"},null,null,"ראש מועצה וסגן",null,null,null,{"$f":"IF(AND(Table3[[#This Row],[ תקציב 2020 (הצעה)]]=\"\",Table3[[#This Row],[תקציב 2019]]=\"\"),\" \",Table3[[#This Row],[ תקציב 2020 (הצעה)]]-Table3[[#This Row],[תקציב 2019]])","v":" "}]
[null,{"$f":"IFERROR(INDEX(Table2[שם המשימה],MATCH(Table3[[#This Row],[מס משימה]],Table2[מס משימה],0)),\"\")","v":""},null,null,"הוצאות",null,null,null,{"$f":"IF(AND(Table3[[#This Row],[ תקציב 2020 (הצעה)]]=\"\",Table3[[#This Row],[תקציב 2019]]=\"\"),\" \",Table3[[#This Row],[ תקציב 2020 (הצעה)]]-Table3[[#This Row],[תקציב 2019]])","v":" "}]
[null,{"$f":"IFERROR(INDEX(Table2[שם המשימה],MATCH(Table3[[#This Row],[מס משימה]],Table2[מס משימה],0)),\"\")","v":""},"הוצאות",1611111,"שכר עבודה ראש המועצה וסגניו",-1993,-702.81899999999996,null,{"$f":"IF(AND(Table3[[#This Row],[ תקציב 2020 (הצעה)]]=\"\",Table3[[#This Row],[תקציב 2019]]=\"\"),\" \",Table3[[#This Row],[ תקציב 2020 (הצעה)]]-Table3[[#This Row],[תקציב 2019]])","v":1993}]
[null,{"$f":"IFERROR(INDEX(Table2[שם המשימה],MATCH(Table3[[#This Row],[מס משימה]],Table2[מס משימה],0)),\"\")","v":""},"הוצאות",1611178,"הוצאות אחרות",-90,-49.673000000000002,null,{"$f":"IF(AND(Table3[[#This Row],[ תקציב 2020 (הצעה)]]=\"\",Table3[[#This Row],[תקציב 2019]]=\"\"),\" \",Table3[[#This Row],[ תקציב 2020 (הצעה)]]-Table3[[#This Row],[תקציב 2019]])","v":90}]
[null,{"$f":"IFERROR(INDEX(Table2[שם המשימה],MATCH(Table3[[#This Row],[מס משימה]],Table2[מס משימה],0)),\"\")","v":""},"הוצאות",1611430,"הוצאות טלפון",-15,-16.376829999999998,null,{"$f":"IF(AND(Table3[[#This Row],[ תקציב 2020 (הצעה)]]=\"\",Table3[[#This Row],[תקציב 2019]]=\"\"),\" \",Table3[[#This Row],[ תקציב 2020 (הצעה)]]-Table3[[#This Row],[תקציב 2019]])","v":15}]
[null,{"$f":"IFERROR(INDEX(Table2[שם המשימה],MATCH(Table3[[#This Row],[מס משימה]],Table2[מס משימה],0)),\"\")","v":""},"הוצאות",1611511,"הוצאות ארוח וכיבוד",-45,-15.93881,null,{"$f":"IF(AND(Table3[[#This Row],[ תקציב 2020 (הצעה)]]=\"\",Table3[[#This Row],[תקציב 2019]]=\"\"),\" \",Table3[[#This Row],[ תקציב 2020 (הצעה)]]-Table3[[#This Row],[תקציב 2019]])","v":45}]
[null,{"$f":"IFERROR(INDEX(Table2[שם המשימה],MATCH(Table3[[#This Row],[מס משימה]],Table2[מס משימה],0)),\"\")","v":""},"הוצאות",1611530,"רכבים בעלות 6475270/5102468 אסיף/רפי",-160,-80.87639999999999,null,{"$f":"IF(AND(Table3[[#This Row],[ תקציב 2020 (הצעה)]]=\"\",Table3[[#This Row],[תקציב 2019]]=\"\"),\" \",Table3[[#This Row],[ תקציב 2020 (הצעה)]]-Table3[[#This Row],[תקציב 2019]])","v":160}]
[1,{"$f":"IFERROR(INDEX(Table2[שם המשימה],MATCH(Table3[[#This Row],[מס משימה]],Table2[מס משימה],0)),\"\")","v":""},"הוצאות","חדש","שיפור השירות לתושב",0,150,null,150]
[null,{"$f":"IFERROR(INDEX(Table2[שם המשימה],MATCH(Table3[[#This Row],[מס משימה]],Table2[מס משימה],0)),\"\")","v":""},null,null,null,null,null,null,{"$f":"IF(AND(Table3[[#This Row],[ תקציב 2020 (הצעה)]]=\"\",Table3[[#This Row],[תקציב 2019]]=\"\"),\" \",Table3[[#This Row],[ תקציב 2020 (הצעה)]]-Table3[[#This Row],[תקציב 2019]])","v":" "}]
[null,{"$f":"IFERROR(INDEX(Table2[שם המשימה],MATCH(Table3[[#This Row],[מס משימה]],Table2[מס משימה],0)),\"\")","v":""},null,null,null,null,null,null,{"$f":"IF(AND(Table3[[#This Row],[ תקציב 2020 (הצעה)]]=\"\",Table3[[#This Row],[תקציב 2019]]=\"\"),\" \",Table3[[#This Row],[ תקציב 2020 (הצעה)]]-Table3[[#This Row],[תקציב 2019]])","v":" "}]
[null,{"$f":"IFERROR(INDEX(Table2[שם המשימה],MATCH(Table3[[#This Row],[מס משימה]],Table2[מס משימה],0)),\"\")","v":""},null,null,null,null,null,null,{"$f":"IF(AND(Table3[[#This Row],[ תקציב 2020 (הצעה)]]=\"\",Table3[[#This Row],[תקציב 2019]]=\"\"),\" \",Table3[[#This Row],[ תקציב 2020 (הצעה)]]-Table3[[#This Row],[תקציב 2019]])","v":" "}]
[-1,{"$f":"IFERROR(INDEX(Table2[שם המשימה],MATCH(Table3[[#This Row],[מס משימה]],Table2[מס משימה],0)),\"\")","v":"*כותרת*"},null,null,"מזכירות",null,null,null,{"$f":"IF(AND(Table3[[#This Row],[ תקציב 2020 (הצעה)]]=\"\",Table3[[#This Row],[תקציב 2019]]=\"\"),\" \",Table3[[#This Row],[ תקציב 2020 (הצעה)]]-Table3[[#This Row],[תקציב 2019]])","v":" "}]
[null,{"$f":"IFERROR(INDEX(Table2[שם המשימה],MATCH(Table3[[#This Row],[מס משימה]],Table2[מס משימה],0)),\"\")","v":""},null,null,"הוצאות",null,null,null,{"$f":"IF(AND(Table3[[#This Row],[ תקציב 2020 (הצעה)]]=\"\",Table3[[#This Row],[תקציב 2019]]=\"\"),\" \",Table3[[#This Row],[ תקציב 2020 (הצעה)]]-Table3[[#This Row],[תקציב 2019]])","v":" "}]
[null,{"$f":"IFERROR(INDEX(Table2[שם המשימה],MATCH(Table3[[#This Row],[מס משימה]],Table2[מס משימה],0)),\"\")","v":""},"הוצאות",1613111,"שכר עבודה מזכירות",-2021,-861.26700000000005,null,{"$f":"IF(AND(Table3[[#This Row],[ תקציב 2020 (הצעה)]]=\"\",Table3[[#This Row],[תקציב 2019]]=\"\"),\" \",Table3[[#This Row],[ תקציב 2020 (הצעה)]]-Table3[[#This Row],[תקציב 2019]])","v":2021}]
[null,{"$f":"IFERROR(INDEX(Table2[שם המשימה],MATCH(Table3[[#This Row],[מס משימה]],Table2[מס משימה],0)),\"\")","v":""},"הוצאות",1613141,"ביטוחי מועצה ( רכוש וחבויות )",-1850,-421.00729999999999,null,{"$f":"IF(AND(Table3[[#This Row],[ תקציב 2020 (הצעה)]]=\"\",Table3[[#This Row],[תקציב 2019]]=\"\"),\" \",Table3[[#This Row],[ תקציב 2020 (הצעה)]]-Table3[[#This Row],[תקציב 2019]])","v":1850}]
[null,{"$f":"IFERROR(INDEX(Table2[שם המשימה],MATCH(Table3[[#This Row],[מס משימה]],Table2[מס משימה],0)),\"\")","v":""},"הוצאות",1613211,"שכ\"ע בחירות",0,0,null,{"$f":"IF(AND(Table3[[#This Row],[ תקציב 2020 (הצעה)]]=\"\",Table3[[#This Row],[תקציב 2019]]=\"\"),\" \",Table3[[#This Row],[ תקציב 2020 (הצעה)]]-Table3[[#This Row],[תקציב 2019]])","v":0}]
[null,{"$f":"IFERROR(INDEX(Table2[שם המשימה],MATCH(Table3[[#This Row],[מס משימה]],Table2[מס משימה],0)),\"\")","v":""},"הוצאות",1619198,"בחירות 2018 אוקטובר",0,0,null,{"$f":"IF(AND(Table3[[#This Row],[ תקציב 2020 (הצעה)]]=\"\",Table3[[#This Row],[תקציב 2019]]=\"\"),\" \",Table3[[#This Row],[ תקציב 2020 (הצעה)]]-Table3[[#This Row],[תקציב 2019]])","v":0}]
[null,{"$f":"IFERROR(INDEX(Table2[שם המשימה],MATCH(Table3[[#This Row],[מס משימה]],Table2[מס משימה],0)),\"\")","v":""},"הוצאות",1613156,"דאר, בולים ,טלפון",-140,-91.3,null,{"$f":"IF(AND(Table3[[#This Row],[ תקציב 2020 (הצעה)]]=\"\",Table3[[#This Row],[תקציב 2019]]=\"\"),\" \",Table3[[#This Row],[ תקציב 2020 (הצעה)]]-Table3[[#This Row],[תקציב 2019]])","v":140}]
[null,{"$f":"IFERROR(INDEX(Table2[שם המשימה],MATCH(Table3[[#This Row],[מס משימה]],Table2[מס משימה],0)),\"\")","v":""},"הוצאות",1613282,"השתתפות לועד עובדים",-180,-180,null,{"$f":"IF(AND(Table3[[#This Row],[ תקציב 2020 (הצעה)]]=\"\",Table3[[#This Row],[תקציב 2019]]=\"\"),\" \",Table3[[#This Row],[ תקציב 2020 (הצעה)]]-Table3[[#This Row],[תקציב 2019]])","v":180}]
[null,{"$f":"IFERROR(INDEX(Table2[שם המשימה],MATCH(Table3[[#This Row],[מס משימה]],Table2[מס משימה],0)),\"\")","v":""},"הוצאות",1613421,"אחזקת מבנה",-95,-46.46537,null,{"$f":"IF(AND(Table3[[#This Row],[ תקציב 2020 (הצעה)]]=\"\",Table3[[#This Row],[תקציב 2019]]=\"\"),\" \",Table3[[#This Row],[ תקציב 2020 (הצעה)]]-Table3[[#This Row],[תקציב 2019]])","v":95}]
[null,{"$f":"IFERROR(INDEX(Table2[שם המשימה],MATCH(Table3[[#This Row],[מס משימה]],Table2[מס משימה],0)),\"\")","v":""},"הוצאות",1613430,"חשמל ,מים נקיון",-280,-131.41428999999999,null,{"$f":"IF(AND(Table3[[#This Row],[ תקציב 2020 (הצעה)]]=\"\",Table3[[#This Row],[תקציב 2019]]=\"\"),\" \",Table3[[#This Row],[ תקציב 2020 (הצעה)]]-Table3[[#This Row],[תקציב 2019]])","v":280}]
[null,{"$f":"IFERROR(INDEX(Table2[שם המשימה],MATCH(Table3[[#This Row],[מס משימה]],Table2[מס משימה],0)),\"\")","v":""},"הוצאות",1613511,"ארוח וכיבוד",-40,-9.0966000000000005,null,{"$f":"IF(AND(Table3[[#This Row],[ תקציב 2020 (הצעה)]]=\"\",Table3[[#This Row],[תקציב 2019]]=\"\"),\" \",Table3[[#This Row],[ תקציב 2020 (הצעה)]]-Table3[[#This Row],[תקציב 2019]])","v":40}]
[null,{"$f":"IFERROR(INDEX(Table2[שם המשימה],MATCH(Table3[[#This Row],[מס משימה]],Table2[מס משימה],0)),\"\")","v":""},"הוצאות",1613530,"רכב מזכירות 28-623-14 ליסינג",-65,-23.604089999999999,null,{"$f":"IF(AND(Table3[[#This Row],[ תקציב 2020 (הצעה)]]=\"\",Table3[[#This Row],[תקציב 2019]]=\"\"),\" \",Table3[[#This Row],[ תקציב 2020 (הצעה)]]-Table3[[#This Row],[תקציב 2019]])","v":65}]
[null,{"$f":"IFERROR(INDEX(Table2[שם המשימה],MATCH(Table3[[#This Row],[מס משימה]],Table2[מס משימה],0)),\"\")","v":""},"הוצאות",1613550,"פרסומים + ידיעון המועצה",-250,-74.005499999999998,null,{"$f":"IF(AND(Table3[[#This Row],[ תקציב 2020 (הצעה)]]=\"\",Table3[[#This Row],[תקציב 2019]]=\"\"),\" \",Table3[[#This Row],[ תקציב 2020 (הצעה)]]-Table3[[#This Row],[תקציב 2019]])","v":250}]
[null,{"$f":"IFERROR(INDEX(Table2[שם המשימה],MATCH(Table3[[#This Row],[מס משימה]],Table2[מס משימה],0)),\"\")","v":""},"הוצאות",1613560,"משרדיות וצילומים",-75,-18.77121,null,{"$f":"IF(AND(Table3[[#This Row],[ תקציב 2020 (הצעה)]]=\"\",Table3[[#This Row],[תקציב 2019]]=\"\"),\" \",Table3[[#This Row],[ תקציב 2020 (הצעה)]]-Table3[[#This Row],[תקציב 2019]])","v":75}]
[null,{"$f":"IFERROR(INDEX(Table2[שם המשימה],MATCH(Table3[[#This Row],[מס משימה]],Table2[מס משימה],0)),\"\")","v":""},"הוצאות",1613678,"הנהלה וכלליות",-135,-33.627629999999996,null,{"$f":"IF(AND(Table3[[#This Row],[ תקציב 2020 (הצעה)]]=\"\",Table3[[#This Row],[תקציב 2019]]=\"\"),\" \",Table3[[#This Row],[ תקציב 2020 (הצעה)]]-Table3[[#This Row],[תקציב 2019]])","v":135}]
[null,{"$f":"IFERROR(INDEX(Table2[שם המשימה],MATCH(Table3[[#This Row],[מס משימה]],Table2[מס משימה],0)),\"\")","v":""},"הוצאות",1614155,"מרכזיה",-30,0,null,{"$f":"IF(AND(Table3[[#This Row],[ תקציב 2020 (הצעה)]]=\"\",Table3[[#This Row],[תקציב 2019]]=\"\"),\" \",Table3[[#This Row],[ תקציב 2020 (הצעה)]]-Table3[[#This Row],[תקציב 2019]])","v":30}]
[null,{"$f":"IFERROR(INDEX(Table2[שם המשימה],MATCH(Table3[[#This Row],[מס משימה]],Table2[מס משימה],0)),\"\")","v":""},"הוצאות",1614255,"אתר אינטרנט",-50,-2.0950000000000002,null,{"$f":"IF(AND(Table3[[#This Row],[ תקציב 2020 (הצעה)]]=\"\",Table3[[#This Row],[תקציב 2019]]=\"\"),\" \",Table3[[#This Row],[ תקציב 2020 (הצעה)]]-Table3[[#This Row],[תקציב 2019]])","v":50}]
[null,{"$f":"IFERROR(INDEX(Table2[שם המשימה],MATCH(Table3[[#This Row],[מס משימה]],Table2[מס משימה],0)),\"\")","v":""},"הוצאות",1614455,"מועצת נשים",-70,-12.9475,null,{"$f":"IF(AND(Table3[[#This Row],[ תקציב 2020 (הצעה)]]=\"\",Table3[[#This Row],[תקציב 2019]]=\"\"),\" \",Table3[[#This Row],[ תקציב 2020 (הצעה)]]-Table3[[#This Row],[תקציב 2019]])","v":70}]
[null,{"$f":"IFERROR(INDEX(Table2[שם המשימה],MATCH(Table3[[#This Row],[מס משימה]],Table2[מס משימה],0)),\"\")","v":""},"הוצאות",1616158,"השתלמויות והדרכה",-20,-9.2899999999999991,null,{"$f":"IF(AND(Table3[[#This Row],[ תקציב 2020 (הצעה)]]=\"\",Table3[[#This Row],[תקציב 2019]]=\"\"),\" \",Table3[[#This Row],[ תקציב 2020 (הצעה)]]-Table3[[#This Row],[תקציב 2019]])","v":20}]
[null,{"$f":"IFERROR(INDEX(Table2[שם המשימה],MATCH(Table3[[#This Row],[מס משימה]],Table2[מס משימה],0)),\"\")","v":""},"הוצאות",1617581,"יעוץ משפטי",-400,-272.26,null,{"$f":"IF(AND(Table3[[#This Row],[ תקציב 2020 (הצעה)]]=\"\",Table3[[#This Row],[תקציב 2019]]=\"\"),\" \",Table3[[#This Row],[ תקציב 2020 (הצעה)]]-Table3[[#This Row],[תקציב 2019]])","v":400}]
[null,{"$f":"IFERROR(INDEX(Table2[שם המשימה],MATCH(Table3[[#This Row],[מס משימה]],Table2[מס משימה],0)),\"\")","v":""},null,null,null,null,null,null,{"$f":"IF(AND(Table3[[#This Row],[ תקציב 2020 (הצעה)]]=\"\",Table3[[#This Row],[תקציב 2019]]=\"\"),\" \",Table3[[#This Row],[ תקציב 2020 (הצעה)]]-Table3[[#This Row],[תקציב 2019]])","v":" "}]
[null,{"$f":"IFERROR(INDEX(Table2[שם המשימה],MATCH(Table3[[#This Row],[מס משימה]],Table2[מס משימה],0)),\"\")","v":""},null,null,null,null,null,null,{"$f":"IF(AND(Table3[[#This Row],[ תקציב 2020 (הצעה)]]=\"\",Table3[[#This Row],[תקציב 2019]]=\"\"),\" \",Table3[[#This Row],[ תקציב 2020 (הצעה)]]-Table3[[#This Row],[תקציב 2019]])","v":" "}]
[null,{"$f":"IFERROR(INDEX(Table2[שם המשימה],MATCH(Table3[[#This Row],[מס משימה]],Table2[מס משימה],0)),\"\")","v":""},null,null,null,null,null,null,{"$f":"IF(AND(Table3[[#This Row],[ תקציב 2020 (הצעה)]]=\"\",Table3[[#This Row],[תקציב 2019]]=\"\"),\" \",Table3[[#This Row],[ תקציב 2020 (הצעה)]]-Table3[[#This Row],[תקציב 2019]])","v":" "}]
[null,{"$f":"IFERROR(INDEX(Table2[שם המשימה],MATCH(Table3[[#This Row],[מס משימה]],Table2[מס משימה],0)),\"\")","v":""},null,null,null,null,null,null,{"$f":"IF(AND(Table3[[#This Row],[ תקציב 2020 (הצעה)]]=\"\",Table3[[#This Row],[תקציב 2019]]=\"\"),\" \",Table3[[#This Row],[ תקציב 2020 (הצעה)]]-Table3[[#This Row],[תקציב 2019]])","v":" "}]
[null,null,null,null,"סה\"כ ",{"$f":"SUBTOTAL(109,Table3[תקציב 2019])","v":-8004},{"$f":"SUBTOTAL(109,Table3[ביצוע תקופתי 2019\n(5 חוד'')])","v":-2902.8355299999994},{"$f":"SUBTOTAL(109,Table3[ תקציב 2020 (הצעה)])","v":0},{"$f":"SUBTOTAL(109,Table3[פער 2019/20])","v":8154}]
[]
[null,null,null,null,null,null,null,null,"סה\"כ השתתפות המועצה:"]
[null,null,null,null,null,null,null,null,2019,{"$f":"Table3[[#Totals],[תקציב 2019]]","v":-8004}]
[null,null,null,null,null,null,null,null,2020,{"$f":"Table3[[#Totals],[ תקציב 2020 (הצעה)]]","v":0}]
[null,null,null,null,null,null,null,null,"תוספת נדרשת 2019/20",{"$f":"(J43)-(J44)","v":-8004}]

{"sheet":"תוכנית עבודה","index":1,"n_rows":111,"n_cols":16,"rows_kept":111,"cut":false,"hidden":false,"merged":[[1,0,1,15]]}
[]
[" תוכנית עבודה שנת העבודה 2025 - סגן ומ\"מ ראש המועצה "]
["מס'","מס משימה","שם המשימה","ערך ארגוני","מטרה (הישג נשאף המקדם את המועצה\\אגף לקידום החזון)","יעד (תוצאה ספציפית מדוייקת מדידה, הדרך למטרה)","הפעילות הנדרשת למימוש היעד","מדד להצלחה","האחראי","השותפים","רבעון 1","רבעון 2","רבעון 3","רבעון 4","אומדן עלות משימה","סעיף תקציב"]
["מס'","מס משימה","שם המשימה","ערך","מטרות","יעד","יעדים/פעולות","עמודה6","אחראי","שותפים","עמודה2","עמודה3","עמודה4","עמודה5","עמודה1","סעיף תקציבי"]
[-1,-1,"*כותרת*",null,null,null,null,null,null,null,null,null,null,null,null,{"$f":"IFERROR(IF(MATCH(Table2[[#This Row],[מס משימה]],Table3[מס משימה],0)>0,\"+\"),\"לא נדרש\")","v":"+"}]
[1,"חינוך ",null,"חדשנות ויצרתיות ","השבחת מערכת החינוך במועצה","המשך מימוש התוכנית האסטרטגית לחינוך","המשך ליווי צוות היגוי ","יישום שלב ג' בתוכנית","סגן ומ\"מ ראש המועצה","מנהלת אגף החינוך, מנהלי בתי הספר, מלווה תוכנית אב לחינוך, פיקוח משרד החינוך","*","*","*","*",null,{"$f":"IFERROR(IF(MATCH(Table2[[#This Row],[מס משימה]],Table3[מס משימה],0)>0,\"+\"),\"לא נדרש\")","v":"לא נדרש"}]
[2,null,null,"חדשנות ויצרתיות ","השבחת  מוסדות החינוך במועצה","התאמת בינוי והשבחת מוסדות חינוך בהתאם לצמיחה הדמוגרפית","מיפוי צרכים, ביצוע מפגשים עם וועדת היגוי הורים ומנהלי בתי ספר, מינהל הפיתוח משרד החינוך ","ביצוע בינוי בהתאם לצורך","סגן ומ\"מ ראש המועצה","מנהלת אגף החינוך, מנהלי/ות בתי הסםר והגנים, אגף ההנדסה, בועדה לאישור בינוי של משרד החינוך ","*","*","*","*",null,{"$f":"IFERROR(IF(MATCH(Table2[[#This Row],[מס משימה]],Table3[מס משימה],0)>0,\"+\"),\"לא נדרש\")","v":"לא נדרש"}]
[3,null,null,"חדשנות ויצרתיות ","השבחת  מוסדות החינוך במועצה","שיפוץ מוסדות החינוך וחדרי משאבים ","ביצוע שיפוצי מוסדות החינוך לכל אורך השנה","העמדת מוסדות החינוך בצורה מייטבית לקראת שנת הלימודים הבאה","סגן ומ\"מ ראש המועצה","אגף החינוך, מנהלי/ות בתי הספר והגנים, אגף מוניציפאלי, מחנהל פיתוח משרד החינוך ","*","*","*","*",null,{"$f":"IFERROR(IF(MATCH(Table2[[#This Row],[מס משימה]],Table3[מס משימה],0)>0,\"+\"),\"לא נדרש\")","v":"לא נדרש"}]
[4,null,null,"חדשנות ויצרתיות ","השבחת  מוסדות החינוך במועצה","קידום וטיפוח תחום הגיל הרך (לידה עד 3) ","בקרה והכשרות מקצועיות","שימור  מסגרות פעילות במרחב / פתיחה מסגרות חדשות  ","סגן ומ\"מ ראש המועצה","מנהלת אגף החינוך מנהלת הגיל הרך,, אגף מעונןת יום ","*","*","*","*",null,{"$f":"IFERROR(IF(MATCH(Table2[[#This Row],[מס משימה]],Table3[מס משימה],0)>0,\"+\"),\"לא נדרש\")","v":"לא נדרש"}]
[5,null,null,"חדשנות ויצרתיות ","השבחת  מוסדות החינוך במועצה","קידום וטיפוח (גנים 3-6 )","  הגדרת תהליך ייחודיות לגנ\"י בחוף הכרמל","10 גנים נוספים בחוף הכרמל יודעים לספר את הייחודיות שלהם - \"מי אני\".                  ","סגן ומ\"מ ראש המועצה","מנהלת אגך החינוך, מנהלת הגנים, פיקוח משה\"ח,מנהלת הגנים,  ,מובילות,מנהלת אגף חינוך ","*","*","*","*",null,{"$f":"IFERROR(IF(MATCH(Table2[[#This Row],[מס משימה]],Table3[מס משימה],0)>0,\"+\"),\"לא נדרש\")","v":"לא נדרש"}]
[6,null,null,"חדשנות ויצרתיות ","השבחת  מוסדות החינוך במועצה","קידום וטיפוח בתי ספר יסודיים(  6-12 )","תוכניות מו\"פ לבתי הספר במועצה והטמעת עקרונות החינוך ","ביצוע  יחודיות לכל בית ספר במועצה ואבטחה חינוכית, פתיחת אזורי רישום ","סגן ומ\"מ ראש המועצה","מנהלת אגף החינוך, מנהלי/ות בתי הספר, חברי קבוצת המחשב, מלווה מקצועי","*","*","*","*",null,{"$f":"IFERROR(IF(MATCH(Table2[[#This Row],[מס משימה]],Table3[מס משימה],0)>0,\"+\"),\"לא נדרש\")","v":"לא נדרש"}]
[7,null,null,"חדשנות ויצרתיות ","השבחת  מוסדות החינוך במועצה","קידום וטיפוח חינוך על יסודי - \" מרחב חינוכי משותף\" ( 12-18)","המשך פיתוח חממות ופקולטות בהתאמה לתוכנית אב לחינוך,  ","סיום פיתוח חממות ופקולטות","סגן ומ\"מ ראש המועצה","מנהלת אגף החינוך, מנהלי/ות בתי הספר, מנכל המועצה, מחלקת תחבורה, משרד החינוך מיפוי כפול","*","*","*","*",null,{"$f":"IFERROR(IF(MATCH(Table2[[#This Row],[מס משימה]],Table3[מס משימה],0)>0,\"+\"),\"לא נדרש\")","v":"לא נדרש"}]
[8,null,null,"חדשנות ויצרתיות ","מתן מענה לאוכלוסיות מיוחדות","שיפור פעילות בית הספר לחינוך מיוחד \"יחד\" (במשותף)","הסדרת קליטת תלמידים  מהאזור  ותלמידי חוץ, הטמעת תוכניות עבודה ורצפים מכיתות החינוך המיוחד, מיפוי בינוי. ","קליטת תלמידים מבוקרת , מיפוי בינוי והגשה למשרד החינוך הכרה בצורך. ","סגן ומ\"מ ראש המועצה"," אגף החינוך, בית הספר, משרד החינוך , פיקוח חינוך התישבותי. ","*","*","*","*",null,{"$f":"IFERROR(IF(MATCH(Table2[[#This Row],[מס משימה]],Table3[מס משימה],0)>0,\"+\"),\"לא נדרש\")","v":"לא נדרש"}]
[9,null,null,"שותפויות","שיפור המענה לחינוך הדתי","מימוש תוכנית מעברות \"חמד\" (זכרון יעקב)","פגישה עם בית ספר קולט, שיתוף פעולה","ביצוע 4 פגישות בשנה עם בית הספר הקולט - תוכנית רצפים","סגן ומ\"מ ראש המועצה"," אגף החינוך, בית הספר, משרד החינוך , פיקוח חמ\"ד","*","*","*","*",null,{"$f":"IFERROR(IF(MATCH(Table2[[#This Row],[מס משימה]],Table3[מס משימה],0)>0,\"+\"),\"לא נדרש\")","v":"לא נדרש"}]
[10,null,null,"חדשנות ויצרתיות ","העצמת החינוך","תוכנית אסטרטגית לקידום החינוך בקיסריה  - 'מעוף לחינוך'","ליווי התוכנית בהתאם לתכנון","חיזוק הקשר בין הקהילה למסגרות החינוך, תוכנית מעברים, מצוינות ","סגן ומ\"מ ראש המועצה","מנהלת אגף החינוך, מנהל חינוך ונוער, רכז נוער,  חפ\"ק, מנהלי בתי הספר, מנהל המחוז פיקוח ","*","*","*","*",null,{"$f":"IFERROR(IF(MATCH(Table2[[#This Row],[מס משימה]],Table3[מס משימה],0)>0,\"+\"),\"לא נדרש\")","v":"לא נדרש"}]
[11,null,null,"חדשנות ויצרתיות ","טיוב מתן המענה לפעילות ילדים ונוער","פיתוח תוכניות לתחומי הילדים והנוער","חיוזק התנועות הפועלות וארגוני הנוער","מיפוי צרכים, שולחנות עגולים, חידוש חוזים","סגן ומ\"מ ראש המועצה","מנהלת אגף החינוך, מנהל מחלקת הנוער","*","*","*","*",null,{"$f":"IFERROR(IF(MATCH(Table2[[#This Row],[מס משימה]],Table3[מס משימה],0)>0,\"+\"),\"לא נדרש\")","v":"לא נדרש"}]
[12,null,null,"שותפויות","פיתוח מנהיגות נוער","פיתוח תוכניות למנהיגות אזורית ","השרשת תפיסת המנהיגות כולל נוער המוגדר בסיכון . בנית תוכנית עבודה , יום חילופי שלטון ","תוכנית עבודה של מועצות נוער אזורית \n","סגן ומ\"מ ראש המועצה","מנהלת אגף החינוך, מנהל מחלקת הנוער, מנהל חברה ונוער- פיקוח ","*","*","*","*",null,{"$f":"IFERROR(IF(MATCH(Table2[[#This Row],[מס משימה]],Table3[מס משימה],0)>0,\"+\"),\"לא נדרש\")","v":"לא נדרש"}]
[13,null,null,"שותפויות","טיפול מערכתי בנוער בסיכון ","פיתוח תכנית להב\"ה כמתכללת תחום נוער בסיכון במועצה \n","המשך וישום  תוכנית רשתית 24/6","שולחן עגול בין מקצועי, פיתוח תוכניות בין החינוך הפורמאלי והבלתי פורמאלי ותוכניות מניעה. בניית מסלולים ייחודיים ומותאמים בחממות ובפקולטות - עמלני וטכנולוגי בתיכוניים.","סגן ומ\"מ ראש המועצה","סגנית מנהלת אגף החינוך, שיירותיים חברתים, מנהל מחלקת הנוער, רכזת להבה, פיקוח משרד החינוך, מנהלת ביטחון קהילתי, קב\"ט, רכזי נוער חברתיים, מנהל הנוער, ","*","*","*","*",null,{"$f":"IFERROR(IF(MATCH(Table2[[#This Row],[מס משימה]],Table3[מס משימה],0)>0,\"+\"),\"לא נדרש\")","v":"לא נדרש"}]
[14,null,null,"שותפויות","טיפול מערכתי בנוער בסיכון ","פיתוח תכנית להב\"ה כמתכללת תחום נוער בסיכון במועצה \n","תוכנית רשותית   \" מרכז להורות\" ","יצירת חוברת וסדנאות מגיל הרך  ועד תיכון  למתן כלים להורים להתמודדות מיטבית  בחינוך. ","סגן ומ\"מ ראש המועצה","סגנית מנהלת אגף החינוך, שיירותיים חברתים, מנהל מחלקת הנוער, רכזת להבה, פיקוח משרד החינוך, מנהלת ביטחון קהילתי, מחלקת צעירים, רכזי נוער חברתיים, מנהל הנוער, ","*","*","*","*",null,{"$f":"IFERROR(IF(MATCH(Table2[[#This Row],[מס משימה]],Table3[מס משימה],0)>0,\"+\"),\"לא נדרש\")","v":"לא נדרש"}]
[null,null,null,"שותפויות","קשרי חוץ - ערים תאומות ","הכרות קהילות בעולם וחיבור מערכות החינוך עם עיר תאומה\n","חיבור בים קהילת חוך הכרמל - טובינגין ","חילופי משלחות בתחום המוזיקה , מחנות אימונים לנוער ספורט, חיבור טכנולוגי עם בית ספר כפר גלים ","סגן ומ\"מ ראש המועצה","מנהלת אגף החינוך, מנהלת מיר\"ב , מנהלי בתי בפר, דוברת ",null,null,null,null,null,{"$f":"IFERROR(IF(MATCH(Table2[[#This Row],[מס משימה]],Table3[מס משימה],0)>0,\"+\"),\"לא נדרש\")","v":"לא נדרש"}]
[null,null,null,"חדשנות ","מרכז המוזיקה ","הרחבת בתי הספר המנגנים","קול קורא לבתי הספר היסודי להצטרף לתוכנית ","תוספת עוד 4 בתי ספר מגנים בשנת הלימוידם תשפ\"ו","סגן ומ\"מ ראש המועצה","מנהלי בתי ספר, מנהל מרכז המוזיקה, משרד החינוך, אגך החינוך",null,null,null,null,null,{"$f":"IFERROR(IF(MATCH(Table2[[#This Row],[מס משימה]],Table3[מס משימה],0)>0,\"+\"),\"לא נדרש\")","v":"לא נדרש"}]
[15,null,null,"חדשנות ויצרתיות ","מענה  מערכתי למצוינות ","פיתוח תכנית אזורית עבור ילדים ובני נוער/ מחוננים \n","תוכנית רשותית   \" מרכז למצוינות \" ","מיפוי ואבחון תלמידים בשיתוף משרד החינוך.  הקמת מרכז מצוינות אזורי / בכל בית ספר תוכנית מצווינות הצטרפות של לפחות 4 השנה ","סגן ומ\"מ ראש המועצה","מנהלת אגף החינוך, קבסית, פיקוח משרד החינוך, מנהלי בתי ספר, תחבורה","*","*","*","*",null,{"$f":"IFERROR(IF(MATCH(Table2[[#This Row],[מס משימה]],Table3[מס משימה],0)>0,\"+\"),\"לא נדרש\")","v":"לא נדרש"}]
[16,null,null,"שותפויות","פיתוח ההון האנושי","הוקרה ותודה לעובדי ומתנדבי החינוך הפורמאלי והבלתי הפורמאלי ","תוכנית  לערב הוקרה בשיתוף ארגוני המורים והנוער ","ביצוע ערב הוקרה לכל מערכת החינוך בחוף הכרמל ","סגן ומ\"מ ראש המועצה","מנהלת האגף החינוך, מנהלת מחלקת הנוער, וועדות ישובים, רכזי נוער",null,null,"*","*",null,{"$f":"IFERROR(IF(MATCH(Table2[[#This Row],[מס משימה]],Table3[מס משימה],0)>0,\"+\"),\"לא נדרש\")","v":"לא נדרש"}]
[17,"שירותיים חברתיים ",null,"מצוינות בשרות","פתוח והנגשת מענים קהילתיים המחברים בין השכונות השונות בעתלית  להורים עם ילדים בגילאי 0-12","מתן סל שירותים קהילתי המחבר בין משפחות בשכונות השונות בעתלית","בדיקת צרכים ובנית סל מענים בשותפות בין אגפית , ועדת היגוי (שולחנות עגולים) בשיתוף תושבים, הידוק הקשר עם מנהלי השכונות","מפגש שולחנות עגולים , פתוח המענים הנבחרים ע\"י התושבים , מתן/פתיחת המענה הראשון ","סגן  ומ\"מ ראש המועצה",", מנהלת אגף הרווחה, עו\"ש קהילתי + ר\"צ עובדי השלוחה, המרכז הטיפולי, אגף חינוך, שפ\"י. מחוז פיקוח, מנכל עתלית","*","*","*","*",null,{"$f":"IFERROR(IF(MATCH(Table2[[#This Row],[מס משימה]],Table3[מס משימה],0)>0,\"+\"),\"לא נדרש\")","v":"לא נדרש"}]
[18,null,null,"שותפות","הנהגת הורים לילדים בעלי צרכים מיוחדים ","ליווי קבוצת מנהיגות הורית בחוף הכרמל"," ביצוע מפגשים לאורך השנה","קיום 6 מפגשי ליווי של הנהגה פעילה בתוך הקהילה","סגן  ומ\"מ ראש המועצה","מנהלת אגף הרווחה, ז'ניה, ללי, אקים,  דורית, ענבל ","*","*","*","*",null,{"$f":"IFERROR(IF(MATCH(Table2[[#This Row],[מס משימה]],Table3[מס משימה],0)>0,\"+\"),\"לא נדרש\")","v":"לא נדרש"}]
[19,null,null,"שיוויון הזדמנויות","שיפור והרחבת השירותים בתחום מסגרות הפנאי לאזרחים וותיקים","הקמת וביסוס מועדון חברתי במיר\"ב","גיוס תקציב,  בנית תכנית שנתית, שיווק","חיזוק מועדון חברתי ל 30 וותיקים שיגיעו לפעילות חברתית אחת לשבוע, מועדון +60","סגן  ומ\"מ ראש המועצה","מנהלת אגף הרווחה, עמותה לותיק, צוות אזרחים וותיקים,  מרכז מיר\"ב, מנכלית עמותת כרמל","*","*","*","*",null,{"$f":"IFERROR(IF(MATCH(Table2[[#This Row],[מס משימה]],Table3[מס משימה],0)>0,\"+\"),\"לא נדרש\")","v":"לא נדרש"}]
[20,null,null,"שותפויות","חוסן בקהילה ","שולחן עגול למענים לפוסט טראומה פתיחת מרפאה בקהילה עם משרד הבריאות ","קביעת פגישות הכוללות את כל בעלי התפקידים ","קיום 4 מפגשי שולחן עגול בשנה","סגן  ומ\"מ ראש המועצה","מנהלת אגף הרווחה, צוות אזרחים ותיקים, מרכז מיר\"ב, עמותה, מחלקת ישובים, שיל, מעברים, ","*","*","*","*",null,{"$f":"IFERROR(IF(MATCH(Table2[[#This Row],[מס משימה]],Table3[מס משימה],0)>0,\"+\"),\"לא נדרש\")","v":"לא נדרש"}]
[21,null,"חדש","מצויינות בשרות","פיתוח ביסוס וחיזוק עמותה לקשיש במועצה","חיזוק ופיתוח עמותה חזקה בחוף הכרמל שתפתח שירותים מגוונים ואיכותיים לקשישים","בניית תכנית עבודה שנתית."," מימוש תוכנית עבודה , שיתופי פעולה בדגש פנאי ונופש ","סגן  ומ\"מ ראש המועצה"," אגף הרווחה, עמותת כרמל, וועד מנהל עמותת כרמל, צוות ותיקים","*","*","*","*",null,{"$f":"IFERROR(IF(MATCH(Table2[[#This Row],[מס משימה]],Table3[מס משימה],0)>0,\"+\"),\"לא נדרש\")","v":"לא נדרש"}]
[22,null,"חדש","מצוינות בשרות","שרות טיפול תחת קורת גג אחת ","הרחבת מניפת השירותים במרכז","פיתוח מענים נוספים, טיפול cpp, cbt, טיפול בבתים, ילדים עדים לאלימות, וקבוצות- חיבור השרות הפסיכולוגי"," כתובת ברוורה לפניות והפניה לפי תחום הטיפול. סל שרות אחד למרכז (מט\"ל, טיפול משפחה, שרוות פסיכולוגי) ","סגן ומ\"מ ראש המועצה","אגף החינוך, שרות פסיכולוגי, אגף החינוך, מנהלת מט\"ל ","*","*","*","*",null,{"$f":"IFERROR(IF(MATCH(Table2[[#This Row],[מס משימה]],Table3[מס משימה],0)>0,\"+\"),\"לא נדרש\")","v":"לא נדרש"}]
[23,null,"חדש","שותפויות","בית לחיים ותעסוקה למוגבלויות","הקמת צוות מלווה מקצועי  למערך \" בית לחיים\" ותעסוקה למוגבלויות \n","פניה לביטוח לאוצי ואישור תקציב יעודי ל3 בתים נוספים באזור , הסדרת תעסוקה עבור בוגרים בעלי צרכים מיוחדים. ","פתיחת  \" בית לחים\"  ( שלושה) בכפר גלים. הקמת מרכז תעסוקה אזורי בניר עציון \"","סגן  ומ\"מ ראש המועצה","מנהלת אגך שירותים חברתיים  מנהלת אגף החינוך, כפר גלים, עמותת גוונים, עמותה שכולו טוב, עוס מוגבלויות, הנהגת הורים","*","*","*","*",null,{"$f":"IFERROR(IF(MATCH(Table2[[#This Row],[מס משימה]],Table3[מס משימה],0)>0,\"+\"),\"לא נדרש\")","v":"לא נדרש"}]
[24,null,null,"שותפויות","טיפול מערכתי בנוער בסיכון ","שימור תכנית להב\"ה כמתכללת תחום נוער בסיכון במועצה \n","מיפוי מצב קיים תוכנית עבודה, טיפול אינטנסיבי בנוער בסיכון - תוכנית \"רואים אותך\"","תוכנית מניעה מותאמת לישובים .","סגן  ומ\"מ ראש המועצה","מנהלת אגך שירותים חברתיים  מנהלת אגף החינוך,  רכזת להבה,ביטחון קהילתי,  מנהל מחלקת הנוער, פיקוח משרד החינוך, מנהלת ביטחון קהילתי, קב\"ט, רכזי נוער חברתיים","*","*","*","*",null,{"$f":"IFERROR(IF(MATCH(Table2[[#This Row],[מס משימה]],Table3[מס משימה],0)>0,\"+\"),\"לא נדרש\")","v":"לא נדרש"}]
[25,null,null,"שותפויות","פיתוח ההון האנושי ","הוקרה ותודה לעובדים הסוציאלים \n","תוכנית לערב/יום העו\"ס ","ביצוע ערב או יום עבור העו\"ס ","סגן  ומ\"מ ראש המועצה","מנהלת אגך שירותים חברתים, ראשי צוותים ","*","*","*","*",null,{"$f":"IFERROR(IF(MATCH(Table2[[#This Row],[מס משימה]],Table3[מס משימה],0)>0,\"+\"),\"לא נדרש\")","v":"לא נדרש"}]
[26,"קהילה ",null,"חדשנות","אירועי תרבות במוזה","תוכנית כוללת לאירועי התרבות \"מוזה חורף\"","גיבוש צוות מוביל בראשות סגן ראש המועצה וכתיבת תוכנית שנתית ","ביצוע 80% מהתכנית","סגן ומ\"מ ראש המועצה","מנכ\"לית מיר\"ב, מחלקת תרבות, מחלקת ספורט, מוזה","*","*","*","*",null,{"$f":"IFERROR(IF(MATCH(Table2[[#This Row],[מס משימה]],Table3[מס משימה],0)>0,\"+\"),\"לא נדרש\")","v":"לא נדרש"}]
[27,null,null,"חדשנות ","מרכז צערים \n","הפעלת מרכז צעירים עם מענים נרחבים (גיוס, מילואים, משפחות צעירות)","הרחבת התוכנינות לחילים /מילואים","תוכניות רגשיות חברתיות לאנשי מילואים אחרי המלחמה ולשמפחות, חיזוק פעילות להורות צעירה, מיפוי מתגיסים ויווי","סגן ומ\"מ ראש המועצה","מנכ\"לית מיר\"ב מנהלת מחלקת צעירים, סמנכ\"לית , אגף מוניציפאלי","*","*","*","*",null,{"$f":"IFERROR(IF(MATCH(Table2[[#This Row],[מס משימה]],Table3[מס משימה],0)>0,\"+\"),\"לא נדרש\")","v":"לא נדרש"}]
[28,null,null,"שותפות ","קיום אירועי ספורט לקהילה","תוכנית ספורט ","יזום פעילויות ספורט ברובד עממי ותחרותי, צעדה, גביע שווגר- ליגה אזורית "," קיום 3 אירועים לפחות","סגן ומ\"מ ראש המועצה","מנכל\"ית מיר\"ב, מנהלת מחלקת ספורט, מחלקת ספורט","*","*","*","*",null,{"$f":"IFERROR(IF(MATCH(Table2[[#This Row],[מס משימה]],Table3[מס משימה],0)>0,\"+\"),\"לא נדרש\")","v":"לא נדרש"}]
[29,null,"חדש","חדשנות ","פעילות ספורט לגיך הרך ","פיתוח תוכניות ספורט לגיל הרך ","יצירת מיפוי צרכים והכנ תוכנית הפעלה ","לפחות 10 חוגים לגיך הרך בתחום הספורט והתרבות","סגן ומ\"מ ראש המועצה","אגף קהילה מירב. ","*","*","*","*",null,{"$f":"IFERROR(IF(MATCH(Table2[[#This Row],[מס משימה]],Table3[מס משימה],0)>0,\"+\"),\"לא נדרש\")","v":"לא נדרש"}]
[30,null,"חדש","חדשנות ","קידום תב\"ע מירב ","המשך הובלת צוות היגוי לפתוח ספורט תרבות ופנאי מירב ","המשך פגישות ועדת ההיגוי , דיוק התוכנית לועדה מקומית  והכנת התוכנית למחוז ","אישור התוכנית סופי ","סגן ומ\"מ ראש המועצה","ראש המועצה , מנכל\"ית מיר\"ב,אגף הנדסה, חברה מתכננת. חברי ועדה לתכנון ובניה. ","*","*","*","*",null,{"$f":"IFERROR(IF(MATCH(Table2[[#This Row],[מס משימה]],Table3[מס משימה],0)>0,\"+\"),\"לא נדרש\")","v":"לא נדרש"}]
[31,null,null,"חדשנות/ מצוינות בשירות/שוויון הזדמנויות","פיתוח וליווי של הנהגה צעירה\nביישובים ובאיזור, תוך שימוש במיזם המלגות בשיתוף מפעל הפיס"," ליווי של קבוצה שתפעל ברמה היישובית והאיזורית לקידום חיי הקהילה בכלל ותחום הצעירים בפרט","יצירת \"תיק פרויקט\" הכולל תהליך איתור וגיוס, מתווה עבודה, מתכונת הליווי וההכשרה, הגדרת יעדים.","לפחות 15 מלגאים/ות ייקחו חלק בפרויקט המלגות דרך מרכז צעירים, לפחות 7 צעירים בפורום אזורי.  עוד 15 מלגאים לפחות דרך המחלקות והאגפים","סגן ומ\"מ ראש המועצה","מנכ\"לית מיר\"ב, מרכז צעירים (סיוע מחלקת ישובים), מפעל הפיס, מחלקות ואגפי המועצה, הנהגות היישובים","*","*","*","*",null,{"$f":"IFERROR(IF(MATCH(Table2[[#This Row],[מס משימה]],Table3[מס משימה],0)>0,\"+\"),\"לא נדרש\")","v":"לא נדרש"}]
[32,null,null,"חדשנות ויצרתיות ","השבחת פעילות התרבות במועצה ","המשךמימוש תוכנית אסטרטגית תרבות ","ליווי צוות היגוי ","יישום שלב ג' בתוכנית","סגן ומ\"מ ראש המועצה","מנכלית מיר\"ב תפעול, מנהלת מחלתק תרבות, רכזת תרבות בקהילה, רכזת מוזה, נציגי ועדות תרבות בישובים","*","*","*","*",null,{"$f":"IFERROR(IF(MATCH(Table2[[#This Row],[מס משימה]],Table3[מס משימה],0)>0,\"+\"),\"לא נדרש\")","v":"לא נדרש"}]
[33,"ישובים ",null,"מצוינות","פיתוח מקצועי מנהלי ישובים /מזכירות/הנהגות ","המשך הובלת פורום מקצועי ומפגשי למידה ייחודיים למנהלי המחלקות","פורום מקצועי שנפגש קבוע  - התמקצעות  ","מינימום 4 מפגשים בשנה","ראש המועצה , סגן ומ\"מ ראש המועצה ","מנהלת אגף ישובים ","*","*","*","*",null,{"$f":"IFERROR(IF(MATCH(Table2[[#This Row],[מס משימה]],Table3[מס משימה],0)>0,\"+\"),\"לא נדרש\")","v":"לא נדרש"}]
[34,null,null,"שותפויות ","מרכז גישור \n","חשיפה לישובים ובעלי מקצוע ","מפגשים בקהילה ","הכנסת התוכנית למערכות החינוך, נוער, גישור בקהילה ל","סגן ומ\"מ ראש המועצה ","מנהלת אגף ישובים, מנהלת מרכז גישור ","*","*","*","*",null,{"$f":"IFERROR(IF(MATCH(Table2[[#This Row],[מס משימה]],Table3[מס משימה],0)>0,\"+\"),\"לא נדרש\")","v":"לא נדרש"}]
[null,null,null,"שותפויות ","התנדבות בקהילה \n","שימור וחיזוק תוכניות התנדבות בקהילה  ועדה לבחירת אות התנדבות \n","חוברת ויריד התנדבות ","חיזוק הקשר וחשיפה / קיום ועדה לאות התנדבות ","סגן ומ\"מ ראש המועצה ","מנהלת אגף ישובים, מנהלת התנדבות ",null,null,null,null,null,{"$f":"IFERROR(IF(MATCH(Table2[[#This Row],[מס משימה]],Table3[מס משימה],0)>0,\"+\"),\"לא נדרש\")","v":"לא נדרש"}]
[null,null,null,"שותפויות ","חינוך סביבתי ","תוכנית במערכת החינוך ובקהילה ","הכנסת רכזת איכות סיבה לפיתוח תוכניות לבתי הספר, הפניניג קהילתי ","כניסה בכל היסודיים , הפנייג קהילתי בשובעות ","סגן ומ\"מ ראש המועצה ","מנהלת אגף ישובים, מנהלת קימות ואיכות סביבה. ",null,null,null,null,null,{"$f":"IFERROR(IF(MATCH(Table2[[#This Row],[מס משימה]],Table3[מס משימה],0)>0,\"+\"),\"לא נדרש\")","v":"לא נדרש"}]
[null,null,null,null,null,null,null,null,null,null,null,null,null,null,null,{"$f":"IFERROR(IF(MATCH(Table2[[#This Row],[מס משימה]],Table3[מס משימה],0)>0,\"+\"),\"לא נדרש\")","v":"לא נדרש"}]
[null,null,null,null,null,null,null,null,null,null,null,null,null,null,null,{"$f":"IFERROR(IF(MATCH(Table2[[#This Row],[מס משימה]],Table3[מס משימה],0)>0,\"+\"),\"לא נדרש\")","v":"לא נדרש"}]
[null,null,null,null,null,null,null,null,null,null,null,null,null,null,null,{"$f":"IFERROR(IF(MATCH(Table2[[#This Row],[מס משימה]],Table3[מס משימה],0)>0,\"+\"),\"לא נדרש\")","v":"לא נדרש"}]
[null,null,null,null,null,null,null,null,null,null,null,null,null,null,null,{"$f":"IFERROR(IF(MATCH(Table2[[#This Row],[מס משימה]],Table3[מס משימה],0)>0,\"+\"),\"לא נדרש\")","v":"לא נדרש"}]
[null,null,null,null,null,null,null,null,null,null,null,null,null,null,null,{"$f":"IFERROR(IF(MATCH(Table2[[#This Row],[מס משימה]],Table3[מס משימה],0)>0,\"+\"),\"לא נדרש\")","v":"לא נדרש"}]
[null,null,null,null,null,null,null,null,null,null,null,null,null,null,null,{"$f":"IFERROR(IF(MATCH(Table2[[#This Row],[מס משימה]],Table3[מס משימה],0)>0,\"+\"),\"לא נדרש\")","v":"לא נדרש"}]
[null,null,null,null,null,null,null,null,null,null,null,null,null,null,null,{"$f":"IFERROR(IF(MATCH(Table2[[#This Row],[מס משימה]],Table3[מס משימה],0)>0,\"+\"),\"לא נדרש\")","v":"לא נדרש"}]
[null,null,null,null,null,null,null,null,null,null,null,null,null,null,null,{"$f":"IFERROR(IF(MATCH(Table2[[#This Row],[מס משימה]],Table3[מס משימה],0)>0,\"+\"),\"לא נדרש\")","v":"לא נדרש"}]
[null,null,null,null,null,null,null,null,null,null,null,null,null,null,null,{"$f":"IFERROR(IF(MATCH(Table2[[#This Row],[מס משימה]],Table3[מס משימה],0)>0,\"+\"),\"לא נדרש\")","v":"לא נדרש"}]
[null,null,null,null,null,null,null,null,null,null,null,null,null,null,null,{"$f":"IFERROR(IF(MATCH(Table2[[#This Row],[מס משימה]],Table3[מס משימה],0)>0,\"+\"),\"לא נדרש\")","v":"לא נדרש"}]
[null,null,null,null,null,null,null,null,null,null,null,null,null,null,null,{"$f":"IFERROR(IF(MATCH(Table2[[#This Row],[מס משימה]],Table3[מס משימה],0)>0,\"+\"),\"לא נדרש\")","v":"לא נדרש"}]
[null,null,null,null,null,null,null,null,null,null,null,null,null,null,null,{"$f":"IFERROR(IF(MATCH(Table2[[#This Row],[מס משימה]],Table3[מס משימה],0)>0,\"+\"),\"לא נדרש\")","v":"לא נדרש"}]
[null,null,null,null,null,null,null,null,null,null,null,null,null,null,null,{"$f":"IFERROR(IF(MATCH(Table2[[#This Row],[מס משימה]],Table3[מס משימה],0)>0,\"+\"),\"לא נדרש\")","v":"לא נדרש"}]
[null,null,null,null,null,null,null,null,null,null,null,null,null,null,null,{"$f":"IFERROR(IF(MATCH(Table2[[#This Row],[מס משימה]],Table3[מס משימה],0)>0,\"+\"),\"לא נדרש\")","v":"לא נדרש"}]
[null,null,null,null,null,null,null,null,null,null,null,null,null,null,null,{"$f":"IFERROR(IF(MATCH(Table2[[#This Row],[מס משימה]],Table3[מס משימה],0)>0,\"+\"),\"לא נדרש\")","v":"לא נדרש"}]
[null,null,null,null,null,null,null,null,null,null,null,null,null,null,null,{"$f":"IFERROR(IF(MATCH(Table2[[#This Row],[מס משימה]],Table3[מס משימה],0)>0,\"+\"),\"לא נדרש\")","v":"לא נדרש"}]
[null,null,null,null,null,null,null,null,null,null,null,null,null,null,null,{"$f":"IFERROR(IF(MATCH(Table2[[#This Row],[מס משימה]],Table3[מס משימה],0)>0,\"+\"),\"לא נדרש\")","v":"לא נדרש"}]
[null,null,null,null,null,null,null,null,null,null,null,null,null,null,null,{"$f":"IFERROR(IF(MATCH(Table2[[#This Row],[מס משימה]],Table3[מס משימה],0)>0,\"+\"),\"לא נדרש\")","v":"לא נדרש"}]
[null,null,null,null,null,null,null,null,null,null,null,null,null,null,null,{"$f":"IFERROR(IF(MATCH(Table2[[#This Row],[מס משימה]],Table3[מס משימה],0)>0,\"+\"),\"לא נדרש\")","v":"לא נדרש"}]
[null,null,null,null,null,null,null,null,null,null,null,null,null,null,null,{"$f":"IFERROR(IF(MATCH(Table2[[#This Row],[מס משימה]],Table3[מס משימה],0)>0,\"+\"),\"לא נדרש\")","v":"לא נדרש"}]
[null,null,null,null,null,null,null,null,null,null,null,null,null,null,null,{"$f":"IFERROR(IF(MATCH(Table2[[#This Row],[מס משימה]],Table3[מס משימה],0)>0,\"+\"),\"לא נדרש\")","v":"לא נדרש"}]
[null,null,null,null,null,null,null,null,null,null,null,null,null,null,null,{"$f":"IFERROR(IF(MATCH(Table2[[#This Row],[מס משימה]],Table3[מס משימה],0)>0,\"+\"),\"לא נדרש\")","v":"לא נדרש"}]
[null,null,null,null,null,null,null,null,null,null,null,null,null,null,null,{"$f":"IFERROR(IF(MATCH(Table2[[#This Row],[מס משימה]],Table3[מס משימה],0)>0,\"+\"),\"לא נדרש\")","v":"לא נדרש"}]
[null,null,null,null,null,null,null,null,null,null,null,null,null,null,null,{"$f":"IFERROR(IF(MATCH(Table2[[#This Row],[מס משימה]],Table3[מס משימה],0)>0,\"+\"),\"לא נדרש\")","v":"לא נדרש"}]
[null,null,null,null,null,null,null,null,null,null,null,null,null,null,null,{"$f":"IFERROR(IF(MATCH(Table2[[#This Row],[מס משימה]],Table3[מס משימה],0)>0,\"+\"),\"לא נדרש\")","v":"לא נדרש"}]
[null,null,null,null,null,null,null,null,null,null,null,null,null,null,null,{"$f":"IFERROR(IF(MATCH(Table2[[#This Row],[מס משימה]],Table3[מס משימה],0)>0,\"+\"),\"לא נדרש\")","v":"לא נדרש"}]
[null,null,null,null,null,null,null,null,null,null,null,null,null,null,null,{"$f":"IFERROR(IF(MATCH(Table2[[#This Row],[מס משימה]],Table3[מס משימה],0)>0,\"+\"),\"לא נדרש\")","v":"לא נדרש"}]
[null,null,null,null,null,null,null,null,null,null,null,null,null,null,null,{"$f":"IFERROR(IF(MATCH(Table2[[#This Row],[מס משימה]],Table3[מס משימה],0)>0,\"+\"),\"לא נדרש\")","v":"לא נדרש"}]
[null,null,null,null,null,null,null,null,null,null,null,null,null,null,null,{"$f":"IFERROR(IF(MATCH(Table2[[#This Row],[מס משימה]],Table3[מס משימה],0)>0,\"+\"),\"לא נדרש\")","v":"לא נדרש"}]
[null,null,null,null,null,null,null,null,null,null,null,null,null,null,null,{"$f":"IFERROR(IF(MATCH(Table2[[#This Row],[מס משימה]],Table3[מס משימה],0)>0,\"+\"),\"לא נדרש\")","v":"לא נדרש"}]
[null,null,null,null,null,null,null,null,null,null,null,null,null,null,null,{"$f":"IFERROR(IF(MATCH(Table2[[#This Row],[מס משימה]],Table3[מס משימה],0)>0,\"+\"),\"לא נדרש\")","v":"לא נדרש"}]
[null,null,null,null,null,null,null,null,null,null,null,null,null,null,null,{"$f":"IFERROR(IF(MATCH(Table2[[#This Row],[מס משימה]],Table3[מס משימה],0)>0,\"+\"),\"לא נדרש\")","v":"לא נדרש"}]
[null,null,null,null,null,null,null,null,null,null,null,null,null,null,null,{"$f":"IFERROR(IF(MATCH(Table2[[#This Row],[מס משימה]],Table3[מס משימה],0)>0,\"+\"),\"לא נדרש\")","v":"לא נדרש"}]
[null,null,null,null,null,null,null,null,null,null,null,null,null,null,null,{"$f":"IFERROR(IF(MATCH(Table2[[#This Row],[מס משימה]],Table3[מס משימה],0)>0,\"+\"),\"לא נדרש\")","v":"לא נדרש"}]
[null,null,null,null,null,null,null,null,null,null,null,null,null,null,null,{"$f":"IFERROR(IF(MATCH(Table2[[#This Row],[מס משימה]],Table3[מס משימה],0)>0,\"+\"),\"לא נדרש\")","v":"לא נדרש"}]
[null,null,null,null,null,null,null,null,null,null,null,null,null,null,null,{"$f":"IFERROR(IF(MATCH(Table2[[#This Row],[מס משימה]],Table3[מס משימה],0)>0,\"+\"),\"לא נדרש\")","v":"לא נדרש"}]
[null,null,null,null,null,null,null,null,null,null,null,null,null,null,null,{"$f":"IFERROR(IF(MATCH(Table2[[#This Row],[מס משימה]],Table3[מס משימה],0)>0,\"+\"),\"לא נדרש\")","v":"לא נדרש"}]
[null,null,null,null,null,null,null,null,null,null,null,null,null,null,null,{"$f":"IFERROR(IF(MATCH(Table2[[#This Row],[מס משימה]],Table3[מס משימה],0)>0,\"+\"),\"לא נדרש\")","v":"לא נדרש"}]
[null,null,null,null,null,null,null,null,null,null,null,null,null,null,null,{"$f":"IFERROR(IF(MATCH(Table2[[#This Row],[מס משימה]],Table3[מס משימה],0)>0,\"+\"),\"לא נדרש\")","v":"לא נדרש"}]
[null,null,null,null,null,null,null,null,null,null,null,null,null,null,null,{"$f":"IFERROR(IF(MATCH(Table2[[#This Row],[מס משימה]],Table3[מס משימה],0)>0,\"+\"),\"לא נדרש\")","v":"לא נדרש"}]
[null,null,null,null,null,null,null,null,null,null,null,null,null,null,null,{"$f":"IFERROR(IF(MATCH(Table2[[#This Row],[מס משימה]],Table3[מס משימה],0)>0,\"+\"),\"לא נדרש\")","v":"לא נדרש"}]
[null,null,null,null,null,null,null,null,null,null,null,null,null,null,null,{"$f":"IFERROR(IF(MATCH(Table2[[#This Row],[מס משימה]],Table3[מס משימה],0)>0,\"+\"),\"לא נדרש\")","v":"לא נדרש"}]
[null,null,null,null,null,null,null,null,null,null,null,null,null,null,null,{"$f":"IFERROR(IF(MATCH(Table2[[#This Row],[מס משימה]],Table3[מס משימה],0)>0,\"+\"),\"לא נדרש\")","v":"לא נדרש"}]
[null,null,null,null,null,null,null,null,null,null,null,null,null,null,null,{"$f":"IFERROR(IF(MATCH(Table2[[#This Row],[מס משימה]],Table3[מס משימה],0)>0,\"+\"),\"לא נדרש\")","v":"לא נדרש"}]
[null,null,null,null,null,null,null,null,null,null,null,null,null,null,null,{"$f":"IFERROR(IF(MATCH(Table2[[#This Row],[מס משימה]],Table3[מס משימה],0)>0,\"+\"),\"לא נדרש\")","v":"לא נדרש"}]
[null,null,null,null,null,null,null,null,null,null,null,null,null,null,null,{"$f":"IFERROR(IF(MATCH(Table2[[#This Row],[מס משימה]],Table3[מס משימה],0)>0,\"+\"),\"לא נדרש\")","v":"לא נדרש"}]
[null,null,null,null,null,null,null,null,null,null,null,null,null,null,null,{"$f":"IFERROR(IF(MATCH(Table2[[#This Row],[מס משימה]],Table3[מס משימה],0)>0,\"+\"),\"לא נדרש\")","v":"לא נדרש"}]
[null,null,null,null,null,null,null,null,null,null,null,null,null,null,null,{"$f":"IFERROR(IF(MATCH(Table2[[#This Row],[מס משימה]],Table3[מס משימה],0)>0,\"+\"),\"לא נדרש\")","v":"לא נדרש"}]
[null,null,null,null,null,null,null,null,null,null,null,null,null,null,null,{"$f":"IFERROR(IF(MATCH(Table2[[#This Row],[מס משימה]],Table3[מס משימה],0)>0,\"+\"),\"לא נדרש\")","v":"לא נדרש"}]
[null,null,null,null,null,null,null,null,null,null,null,null,null,null,null,{"$f":"IFERROR(IF(MATCH(Table2[[#This Row],[מס משימה]],Table3[מס משימה],0)>0,\"+\"),\"לא נדרש\")","v":"לא נדרש"}]
[null,null,null,null,null,null,null,null,null,null,null,null,null,null,null,{"$f":"IFERROR(IF(MATCH(Table2[[#This Row],[מס משימה]],Table3[מס משימה],0)>0,\"+\"),\"לא נדרש\")","v":"לא נדרש"}]
[null,null,null,null,null,null,null,null,null,null,null,null,null,null,null,{"$f":"IFERROR(IF(MATCH(Table2[[#This Row],[מס משימה]],Table3[מס משימה],0)>0,\"+\"),\"לא נדרש\")","v":"לא נדרש"}]
[null,null,null,null,null,null,null,null,null,null,null,null,null,null,null,{"$f":"IFERROR(IF(MATCH(Table2[[#This Row],[מס משימה]],Table3[מס משימה],0)>0,\"+\"),\"לא נדרש\")","v":"לא נדרש"}]
[null,null,null,null,null,null,null,null,null,null,null,null,null,null,null,{"$f":"IFERROR(IF(MATCH(Table2[[#This Row],[מס משימה]],Table3[מס משימה],0)>0,\"+\"),\"לא נדרש\")","v":"לא נדרש"}]
[null,null,null,null,null,null,null,null,null,null,null,null,null,null,null,{"$f":"IFERROR(IF(MATCH(Table2[[#This Row],[מס משימה]],Table3[מס משימה],0)>0,\"+\"),\"לא נדרש\")","v":"לא נדרש"}]
[null,null,null,null,null,null,null,null,null,null,null,null,null,null,null,{"$f":"IFERROR(IF(MATCH(Table2[[#This Row],[מס משימה]],Table3[מס משימה],0)>0,\"+\"),\"לא נדרש\")","v":"לא נדרש"}]
[null,null,null,null,null,null,null,null,null,null,null,null,null,null,null,{"$f":"IFERROR(IF(MATCH(Table2[[#This Row],[מס משימה]],Table3[מס משימה],0)>0,\"+\"),\"לא נדרש\")","v":"לא נדרש"}]
[null,null,null,null,null,null,null,null,null,null,null,null,null,null,null,{"$f":"IFERROR(IF(MATCH(Table2[[#This Row],[מס משימה]],Table3[מס משימה],0)>0,\"+\"),\"לא נדרש\")","v":"לא נדרש"}]
[null,null,null,null,null,null,null,null,null,null,null,null,null,null,null,{"$f":"IFERROR(IF(MATCH(Table2[[#This Row],[מס משימה]],Table3[מס משימה],0)>0,\"+\"),\"לא נדרש\")","v":"לא נדרש"}]
[null,null,null,null,null,null,null,null,null,null,null,null,null,null,null,{"$f":"IFERROR(IF(MATCH(Table2[[#This Row],[מס משימה]],Table3[מס משימה],0)>0,\"+\"),\"לא נדרש\")","v":"לא נדרש"}]
[null,null,null,null,null,null,null,null,null,null,null,null,null,null,null,{"$f":"IFERROR(IF(MATCH(Table2[[#This Row],[מס משימה]],Table3[מס משימה],0)>0,\"+\"),\"לא נדרש\")","v":"לא נדרש"}]
[null,null,null,null,null,null,null,null,null,null,null,null,null,null,null,{"$f":"IFERROR(IF(MATCH(Table2[[#This Row],[מס משימה]],Table3[מס משימה],0)>0,\"+\"),\"לא נדרש\")","v":"לא נדרש"}]
[null,null,null,null,null,null,null,null,null,null,null,null,null,null,null,{"$f":"IFERROR(IF(MATCH(Table2[[#This Row],[מס משימה]],Table3[מס משימה],0)>0,\"+\"),\"לא נדרש\")","v":"לא נדרש"}]
[null,null,null,null,null,null,null,null,null,null,null,null,null,null,null,{"$f":"IFERROR(IF(MATCH(Table2[[#This Row],[מס משימה]],Table3[מס משימה],0)>0,\"+\"),\"לא נדרש\")","v":"לא נדרש"}]
[null,null,null,null,null,null,null,null,null,null,null,null,null,null,null,{"$f":"IFERROR(IF(MATCH(Table2[[#This Row],[מס משימה]],Table3[מס משימה],0)>0,\"+\"),\"לא נדרש\")","v":"לא נדרש"}]
[null,null,null,null,null,null,null,null,null,null,null,null,null,null,null,{"$f":"IFERROR(IF(MATCH(Table2[[#This Row],[מס משימה]],Table3[מס משימה],0)>0,\"+\"),\"לא נדרש\")","v":"לא נדרש"}]
[null,null,null,null,null,null,null,null,null,null,null,null,null,null,null,{"$f":"IFERROR(IF(MATCH(Table2[[#This Row],[מס משימה]],Table3[מס משימה],0)>0,\"+\"),\"לא נדרש\")","v":"לא נדרש"}]
[null,null,null,null,null,null,null,null,null,null,null,null,null,null,null,{"$f":"IFERROR(IF(MATCH(Table2[[#This Row],[מס משימה]],Table3[מס משימה],0)>0,\"+\"),\"לא נדרש\")","v":"לא נדרש"}]